Workbook

Sheet 收入支出决算总表
A2: 收入支出决算总表
D3: 公开01表
A4: 公开部门：区生态环境局 | D4: 单位：万元
A5: 收入 | C5: 支出
A6: 项目 | B6: 决算数 | C6: 功能分类科目 | D6: 决算数
A7: 一、一般公共预算财政拨款收入 | B7: 5,592.30 | C7: 一、教育支出 | D7: 14.05
A8: 二、政府性基金预算财政拨款收入 | C8: 二、社会保障和就业支出 | D8: 337.16
A9: 三、国有资本经营预算财政拨款收入 | C9: 三、卫生健康支出 | D9: 231.84
A10: 四、上级补助收入 | C10: 四、节能环保支出 | D10: 6,646.22
A11: 五、事业收入 | C11: 五、住房保障支出 | D11: 123.29
A12: 六、经营收入 | C12: 六、科学技术支出
A13: 七、附属单位上缴收入 | C13: 七、文化旅游体育与传媒支出
A14: 八、其他收入 | B14: 52.08
A18: 本年收入合计 | B18: =B7+B14 -> 5,644.38 | C18: 本年支出合计 | D18: =D7+D8+D9+D10+D11 -> 7,352.56
A19: 使用非财政拨款结余和专用结余 | C19: 结余分配
A20: 年初结转和结余 | B20: 1,920.09 | C20: 年末结转和结余 | D20: 211.91
A21: 总计 | B21: =B18+B20 -> 7,564.47 | C21: 总计 | D21: =D18+D20 -> 7,564.47
A22: 备注：本表反映部门本年度的总收支和年末结转结余等情况。

Sheet 收入决算表
A1: 收入决算表
J2: 公开02表
A3: 公开部门：区生态环境局 | J3: 单位：万元
A4: 项目 | C4: 本年收入合计 | D4: 财政拨款收入 | E4: 上级补助收入 | F4: 事业收入 | H4: 经营收入 | I4: 附属单位上缴收入 | J4: 其他收入
A5: 功能分类科目编码 | B5: 项目(按“项”级功能分类科目) | J5: 小计
F6: 小计 | G6: 其中：教育收费
A8: 合计 | C8: =C9+C12+C17+C25+C40 -> 5,639.38 | D8: =D9+D12+D17+D25+D40 -> 5,587.30 | J8: 52.08
A9: 205 | B9: 教育支出 | C9: 14.05 | D9: 14.05
A10: 20508 | B10: 进修及培训 | C10: 14.05 | D10: 14.05
A11: 2050803 | B11: 培训支出 | C11: 14.05 | D11: 14.05
A12: 208 | B12: 社会保障和就业支出 | C12: 337.16 | D12: 337.16
A13: 20805 | B13: 行政事业单位养老支出 | C13: 337.16 | D13: 337.16
A14: 2080505 | B14: 机关事业单位基本养老保险缴费支出 | C14: 179.98 | D14: 179.98
A15: 2080506 | B15: 机关事业单位职业年金缴费支出 | C15: 89.98 | D15: 89.98
A16: 2080599 | B16: 其他行政事业单位养老支出 | C16: 67.2 | D16: 67.2
A17: 210 | B17: 卫生健康支出 | C17: 231.84 | D17: 231.84
A18: 21004 | B18: 公共卫生 | C18: 99.78 | D18: 99.78
A19: 2100410 | B19: 突发公共卫生事件应急处理 | C19: 99.78 | D19: 99.78
A20: 21011 | B20: 行政事业单位医疗 | C20: 132.06 | D20: 132.06
A21: 2101101 | B21: 行政单位医疗 | C21: 42.77 | D21: 42.77
A22: 2101102 | B22: 事业单位医疗 | C22: 49.7 | D22: 49.7
A23: 2101103 | B23: 公务员医疗补助 | C23: 14.76 | D23: 14.76
A24: 2101199 | B24: 其他行政事业单位医疗支出 | C24: 24.83 | D24: 24.83
A25: 211 | B25: 节能环保支出 | C25: =C26+C32+C37 -> 4,933.04 | D25: =D26+D32+D37 -> 4,880.96
A26: 21101 | B26: 环境保护管理事务 | C26: 1,715.16 | D26: 1,715.16
A27: 2110101 | B27: 行政运行 | C27: 1,007.11 | D27: 1,007.11
A28: 2110102 | B28: 一般行政管理事务 | C28: 482.23 | D28: 482.23
A29: 2110104 | B29: 生态环境保护宣传 | C29: 6.6 | D29: 6.6
A30: 2110108 | B30: 应对气候变化管理事务 | C30: 5 | D30: 5
A31: 2110199 | B31: 其他环境保护管理事务支出 | C31: 214.22 | D31: 214.22
A32: 21103 | B32: 污染防治 | C32: 1,922.15 | D32: 1,922.15
A33: 2110301 | B33: 大气 | C33: 700.91 | D33: 700.91
A34: 2110302 | B34: 水体 | C34: 1,221.24 | D34: 1,221.24
A35: 21104 | B35: 自然生态保护 | C35: 5 | D35: 5
A36: 2110401 | B36: 生态保护 | C36: 5 | D36: 5
A37: 21111 | B37: 污染减排 | C37: 1,295.73 | D37: 1,243.65 | J37: 52.08
A38: 2111101 | B38: 生态环境监测与信息 | C38: 1,295.61 | D38: 1,243.53 | J38: 52.08
A39: 2111102 | B39: 生态环境执法监察 | C39: 0.12 | D39: 0.12
A40: 221 | B40: 住房保障支出 | C40: 123.29 | D40: 123.29
A41: 22102 | B41: 住房改革支出 | C41: 123.29 | D41: 123.29
A42: 2210201 | B42: 住房公积金 | C42: 123.29 | D42: 123.29
A43: 备注：本表反映部门本年度取得的各项收入情况。

Sheet 支出决算表
A1: 支出决算表
H2: 公开03表
A3: 公开部门：区生态环境局 | H3: 单位：万元
A4: 项目 | C4: 本年支出合计 | D4: 基本支出 | E4: 项目支出 | F4: 上缴上级支出 | G4: 经营支出 | H4: 对附属单位补助支出
A5: 功能分类科目编码 | B5: 项目(按“项”级功能分类科目)
A8: 合计 | C8: =C9+C12+C17+C25+C40 -> 7,352.56 | D8: =D9+D12+D17+D25+D40 -> 2,709.40 | E8: =E17+E25 -> 4,638.16
A9: 205 | B9: 教育支出 | C9: 14.05 | D9: 14.05
A10: 20508 | B10: 进修及培训 | C10: 14.05 | D10: 14.05
A11: 2050803 | B11: 培训支出 | C11: 14.05 | D11: 14.05
A12: 208 | B12: 社会保障和就业支出 | C12: 337.16 | D12: 337.16
A13: 20805 | B13: 行政事业单位养老支出 | C13: 337.16 | D13: 337.16
A14: 2080505 | B14: 机关事业单位基本养老保险缴费支出 | C14: 179.98 | D14: 179.98
A15: 2080506 | B15: 机关事业单位职业年金缴费支出 | C15: 89.98 | D15: 89.98
A16: 2080599 | B16: 其他行政事业单位养老支出 | C16: 67.2 | D16: 67.2
A17: 210 | B17: 卫生健康支出 | C17: 231.84 | D17: 132.06 | E17: 99.78
A18: 21004 | B18: 公共卫生 | C18: 99.78 | E18: 99.78
A19: 2100410 | B19: 突发公共卫生事件应急处理 | C19: 99.78 | E19: 99.78
A20: 21011 | B20: 行政事业单位医疗 | C20: 132.06 | D20: 132.06
A21: 2101101 | B21: 行政单位医疗 | C21: 42.77 | D21: 42.77
A22: 2101102 | B22: 事业单位医疗 | C22: 49.7 | D22: 49.7
A23: 2101103 | B23: 公务员医疗补助 | C23: 14.76 | D23: 14.76
A24: 2101199 | B24: 其他行政事业单位医疗支出 | C24: 24.83 | D24: 24.83
A25: 211 | B25: 节能环保支出 | C25: 6,646.22 | D25: 2,102.84 | E25: =E26+E32+E37 -> 4,538.38
A26: 21101 | B26: 环境保护管理事务 | C26: 1,786.73 | D26: 1,007.11 | E26: 779.62
A27: 2110101 | B27: 行政运行 | C27: 1,007.11 | D27: 1,007.11
A28: 2110102 | B28: 一般行政管理事务 | C28: 553.8 | E28: 553.8
A29: 2110104 | B29: 生态环境保护宣传 | C29: 6.6 | E29: 6.6
A30: 2110108 | B30: 应对气候变化管理事务 | C30: 5 | E30: 5
A31: 2110199 | B31: 其他环境保护管理事务支出 | C31: 214.22 | E31: 214.22
A32: 21103 | B32: 污染防治 | C32: 3,582.15 | E32: 3,582.15
A33: 2110301 | B33: 大气 | C33: 700.91 | E33: 700.91
A34: 2110302 | B34: 水体 | C34: 2,881.24 | E34: 2,881.24
A35: 21104 | B35: 自然生态保护 | C35: 5 | E35: 5
A36: 2110401 | B36: 生态保护 | C36: 5 | E36: 5
A37: 21111 | B37: 污染减排 | C37: 1,272.34 | D37: 1,095.73 | E37: 176.61
A38: 2111101 | B38: 生态环境监测与信息 | C38: 1,272.22 | D38: 1,095.73 | E38: 176.49
A39: 2111102 | B39: 生态环境执法监察 | C39: 0.12 | E39: 0.12
A40: 221 | B40: 住房保障支出 | C40: 123.29 | D40: 123.29
A41: 22102 | B41: 住房改革支出 | C41: 123.29 | D41: 123.29
A42: 2210201 | B42: 住房公积金 | C42: 123.29 | D42: 123.29
A43: 备注：本表反映部门本年度各项支出情况。

Sheet 财政拨款收入支出决算总表
A1: 财政拨款收入支出决算总表
G2: 公开04表
A3: 公开部门：区生态环境局 | G3: 单位：万元
A4: 收 入 | C4: 支 出
A5: 项 目 | B5: 决算数 | C5: 功能分类科目 | D5: 决算数
D6: 小计 | E6: 一般公共预算财政拨款 | F6: 政府性基金预算财政拨款 | G6: 国有资本经营预算财政拨款
A7: 一、一般公共预算财政拨款 | B7: 5592.3 | C7: 一、教育支出 | D7: 14.05 | E7: 14.05
A8: 二、政府性基金预算财政拨款 | C8: 二、社会保障和就业支出 | D8: 337.16 | E8: 337.16
A9: 三、国有资本经营预算财政拨款 | C9: 三、卫生健康支出 | D9: 231.84 | E9: 231.84
C10: 四、节能环保支出 | D10: 6,545.96 | E10: 6,545.96
C11: 五、住房保障支出 | D11: 123.29 | E11: 123.29
C12: 六、科学技术支出
C13: 七、文化旅游体育与传媒支出
C14: 八、社会保障和就业支出
C15: ……
A16: 本年收入合计 | B16: 5592.3
A17: 年初财政拨款结转和结余 | B17: 1660
A18: 一般公共预算财政拨款 | B18: 1660 | C18: 本年支出合计 | D18: =D11+D10+D9+D8+D7 -> 7252.3 | E18: =E11+E10+E9+E8+E7 -> 7252.3
A19: 政府性基金预算财政拨款 | C19: 年末财政拨款结转和结余
A20: 国有资本经营预算财政拨款
A21: 总计 | B21: =B16+B17 -> 7252.3 | C21: 总计 | D21: 7252.3 | E21: 7252.3
A22: 备注：本表反映部门本年度一般公共预算财政拨款、政府性基金预算财政拨款及国有资本经营预算财政拨款的总收支和年末结转结余情况。

Sheet 一般公共预算财政拨款支出决算表
A1: 一般公共预算财政拨款支出决算表
E2: 公开05表
A3: 公开部门：区生态环境局 | E3: 单位：万元
A4: 功能分类科目编码 | B4: 项目(按“项”级功能分类科目) | C4: 决算数
C5: 合计 | D5: 基本支出 | E5: 项目支出
A6: 合 计 | C6: =C7+C10+C15+C23+C38 -> 7,252.30 | D6: =D7+D10+D15+D23+D38 -> 2,709.40 | E6: =E15+E23 -> 4,542.90
A7: 205 | B7: 教育支出 | C7: 14.05 | D7: 14.05
A8: 20508 | B8: 进修及培训 | C8: 14.05 | D8: 14.05
A9: 2050803 | B9: 培训支出 | C9: 14.05 | D9: 14.05
A10: 208 | B10: 社会保障和就业支出 | C10: 337.16 | D10: 337.16
A11: 20805 | B11: 行政事业单位养老支出 | C11: 337.16 | D11: 337.16
A12: 2080505 | B12: 机关事业单位基本养老保险缴费支出 | C12: 179.98 | D12: 179.98
A13: 2080506 | B13: 机关事业单位职业年金缴费支出 | C13: 89.98 | D13: 89.98
A14: 2080599 | B14: 其他行政事业单位养老支出 | C14: 67.2 | D14: 67.2
A15: 210 | B15: 卫生健康支出 | C15: 231.84 | D15: 132.06 | E15: 99.78
A16: 21004 | B16: 公共卫生 | C16: 99.78 | E16: 99.78
A17: 2100410 | B17: 突发公共卫生事件应急处理 | C17: 99.78 | E17: 99.78
A18: 21011 | B18: 行政事业单位医疗 | C18: 132.06 | D18: 132.06
A19: 2101101 | B19: 行政单位医疗 | C19: 42.77 | D19: 42.77
A20: 2101102 | B20: 事业单位医疗 | C20: 49.7 | D20: 49.7
A21: 2101103 | B21: 公务员医疗补助 | C21: 14.76 | D21: 14.76
A22: 2101199 | B22: 其他行政事业单位医疗支出 | C22: 24.83 | D22: 24.83
A23: 211 | B23: 节能环保支出 | C23: 6,545.96 | D23: 2,102.84 | E23: 4,443.12
A24: 21101 | B24: 环境保护管理事务 | C24: 1,715.16 | D24: 1,007.11 | E24: 708.05
A25: 2110101 | B25: 行政运行 | C25: 1,007.11 | D25: 1,007.11
A26: 2110102 | B26: 一般行政管理事务 | C26: 482.23 | E26: 482.23
A27: 2110104 | B27: 生态环境保护宣传 | C27: 6.6 | E27: 6.6
A28: 2110108 | B28: 应对气候变化管理事务 | C28: 5 | E28: 5
A29: 2110199 | B29: 其他环境保护管理事务支出 | C29: 214.22 | E29: 214.22
A30: 21103 | B30: 污染防治 | C30: 3,582.15 | E30: 3,582.15
A31: 2110301 | B31: 大气 | C31: 700.91 | E31: 700.91
A32: 2110302 | B32: 水体 | C32: 2,881.24 | E32: 2,881.24
A33: 21104 | B33: 自然生态保护 | C33: 5 | E33: 5
A34: 2110401 | B34: 生态保护 | C34: 5 | E34: 5
A35: 21111 | B35: 污染减排 | C35: 1,243.65 | D35: 1,095.73 | E35: 147.91
A36: 2111101 | B36: 生态环境监测与信息 | C36: 1,243.53 | D36: 1,095.73 | E36: 147.79
A37: 2111102 | B37: 生态环境执法监察 | C37: 0.12 | E37: 0.12
A38: 221 | B38: 住房保障支出 | C38: 123.29 | D38: 123.29
A39: 22102 | B39: 住房改革支出 | C39: 123.29 | D39: 123.29
A40: 2210201 | B40: 住房公积金 | C40: 123.29 | D40: 123.29
A41: 备注：本表反映部门本年度一般公共预算财政拨款支出情况。

Sheet 一般公共预算财政拨款基本支出决算表
A1: 一般公共预算财政拨款基本支出决算表
I2: 公开06表
A3: 公开部门：区生态环境局 | I3: 单位：万元
A4: 人员经费 | D4: 公用经费
A5: 经济分类科目编码 | B5: 经济分类科目（按“款”级经济分类科目） | C5: 金额 | D5: 经济分类科目编码 | E5: 经济分类科目（按“款”级经济分类科目） | F5: 金额 | G5: 经济分类科目编码 | H5: 经济分类科目（按“款”级经济分类科目） | I5: 金额
A7: 301 | B7: 工资福利支出 | C7: 2,217.29 | D7: 302 | E7: 商品和服务支出 | F7: 419.05 | G7: 310 | H7: 资本性支出
A8: 30101 | B8: 基本工资 | C8: 498.02 | D8: 30201 | E8: 办公费 | F8: 23.72 | G8: 31001 | H8: 房屋建筑物购建
A9: 30102 | B9: 津贴补贴 | C9: 202.99 | D9: 30202 | E9: 印刷费 | G9: 31002 | H9: 办公设备购置
A10: 30103 | B10: 奖金 | C10: 359.58 | D10: 30203 | E10: 咨询费 | G10: 31003 | H10: 专用设备购置
A11: 30106 | B11: 伙食补助费 | C11: 3.14 | D11: 30204 | E11: 手续费 | G11: 31005 | H11: 基础设施建设
A12: 30107 | B12: 绩效工资 | C12: 601.16 | D12: 30205 | E12: 水费 | F12: 1.22 | G12: 31006 | H12: 大型修缮
A13: 30108 | B13: 机关事业单位基本养老保险缴费 | C13: 179.98 | D13: 30206 | E13: 电费 | F13: 3.05 | G13: 31007 | H13: 信息网络及软件购置更新
A14: 30109 | B14: 职业年金缴费 | C14: 89.99 | D14: 30207 | E14: 邮电费 | F14: 14.97 | G14: 31008 | H14: 物资储备
A15: 30110 | B15: 职工基本医疗保险缴费 | C15: 78.6 | D15: 30208 | E15: 取暖费 | G15: 31009 | H15: 土地补偿
A16: 30111 | B16: 公务员医疗补助缴费 | C16: 14.76 | D16: 30209 | E16: 物业管理费 | G16: 31010 | H16: 安置补助
A17: 30112 | B17: 其他社会保障缴费 | C17: 31.38 | D17: 30211 | E17: 差旅费 | F17: 1.76 | G17: 31011 | H17: 地上附着物和青苗补偿
A18: 30113 | B18: 住房公积金 | C18: 140.16 | D18: 30212 | E18: 因公出国（境）费用 | G18: 31012 | H18: 拆迁补偿
A19: 30114 | B19: 医疗费 | C19: 17.53 | D19: 30213 | E19: 维修（护）费 | G19: 31013 | H19: 公务用车购置
A20: 30199 | B20: 其他工资福利支出 | D20: 30214 | E20: 租赁费 | F20: 2.77 | G20: 31019 | H20: 其他交通工具购置
A21: 303 | B21: 对个人和家庭的补助 | C21: 73.06 | D21: 30215 | E21: 会议费 | F21: 0.10 | G21: 31021 | H21: 文物和陈列品购置
A22: 30301 | B22: 离休费 | D22: 30216 | E22: 培训费 | F22: 23.85 | G22: 31022 | H22: 无形资产购置
A23: 30302 | B23: 退休费 | D23: 30217 | E23: 公务接待费 | G23: 31099 | H23: 其他资本性支出
A24: 30303 | B24: 退职（役）费 | D24: 30218 | E24: 专用材料费 | G24: 312 | H24: 对企业补助
A25: 30304 | B25: 抚恤金 | D25: 30224 | E25: 被装购置费 | G25: 31201 | H25: 资本金注入
A26: 30305 | B26: 生活补助 | C26: 56.07 | D26: 30225 | E26: 专用燃料费 | G26: 31203 | H26: 政府投资基金股权投资
A27: 30306 | B27: 救济费 | D27: 30226 | E27: 劳务费 | F27: 83.85 | G27: 31204 | H27: 费用补贴
A28: 30307 | B28: 医疗费补助 | C28: 7.3 | D28: 30227 | E28: 委托业务费 | F28: 2.00 | G28: 31205 | H28: 利息补贴
A29: 30308 | B29: 助学金 | D29: 30228 | E29: 工会经费 | F29: 72.20 | G29: 31299 | H29: 其他对企业补助
A30: 30309 | B30: 奖励金 | C30: 9.69 | D30: 30229 | E30: 福利费 | F30: 27.22 | G30: 399 | H30: 其他支出
A31: 30310 | B31: 个人农业生产补贴 | D31: 30231 | E31: 公务用车运行维护费 | F31: 20.99 | G31: 39907 | H31: 国家赔偿费用支出
A32: 30311 | B32: 代缴社会保险费 | D32: 30239 | E32: 其他交通费用 | F32: 43.61 | G32: 39908 | H32: 对民间非营利组织和群众性自治组织补贴
A33: 30399 | B33: 其他对个人和家庭的补助 | D33: 30240 | E33: 税金及附加费用 | G33: 39909 | H33: 经常性赠与
D34: 30299 | E34: 其他商品和服务支出 | F34: 97.74 | G34: 39910 | H34: 资本性赠与
D35: 307 | E35: 债务利息及费用支出 | G35: 39999 | H35: 其他支出
D36: 30701 | E36: 国内债务付息
D37: 30702 | E37: 国外债务付息
D38: 30703 | E38: 国内债务发行费用
D39: 30704 | E39: 国外债务发行费用 | H39: ……
A40: 人员经费合计 | C40: 2290.35 | D40: 公用经费合计 | I40: 419.05
A41: 备注：本表反映部门本年度一般公共预算财政拨款基本支出明细情况。

Sheet 政府性基金预算财政拨款收入支出决算表
A1: 政府性基金预算财政拨款收入支出决算表
H2: 公开07表
A3: 公开部门：区生态环境局 | H3: 单位：万元
A4: 功能分类科目编码 | B4: 项目(按“项”级功能分类科目) | C4: 年初结转和结余 | D4: 本年收入 | E4: 本年支出 | H4: 年末结转和结余
E5: 合计 | F5: 基本支出 | G5: 项目支出
A6: 合计
A7: 208 | B7: 社会保障和就业支出
A8: 20822 | B8: 大中型水库移民后期扶持基金支出
A9: 2082201 | B9: 移民补助
A10: …… | B10: ……
A11: 212 | B11: 城乡社区支出
A12: …… | B12: ……
A13: …… | B13: ……
A14: …… | B14: ……
A15: 备注：本表反映部门本年度政府性基金预算财政拨款收入支出及结转结余情况。
A16: 本单位无政府性基金收入，也没有使用政府性基金安排的支出，故本表无数据。

Sheet 国有资本经营预算财政拨款支出决算表
A1: 国有资本经营预算财政拨款支出决算表
A2: 公开08表
A3: 公开部门：区生态环境局 | G3: 单位：万元
A4: 项目 | E4: 本年支出
A5: 功能分类科目编码 | D5: 科目名称 | E5: 合计 | F5: 基本支出 | G5: 项目支出
A8: 合计
A9: 备注：本表反映部门本年度国有资本经营预算财政拨款支出情况。
A10: 本单位无国有资本经营预算财政拨款支出，故本表为空。

Sheet 机构运行信息表
A1: 机构运行信息表
E2: 公开09表
A3: 公开部门：区生态环境局 | E3: 单位：万元
A4: 项 目 | B4: 预算数 | C4: 决算数 | D4: 项 目 | E4: 决算数
A5: 一、“三公”经费支出 | B5: — | C5: — | D5: 四、机关运行经费 | E5: =E6+E7 -> 234.79
A6: （一）支出合计 | B6: =B8+B11 -> 32.91 | C6: =C8+C11 -> 32.91 | D6: （一）行政单位 | E6: 99.75
A7: 1．因公出国（境）费 | D7: （二）参照公务员法管理事业单位 | E7: 135.04
A8: 2．公务用车购置及运行维护费 | B8: 29.34 | C8: 29.34 | D8: 五、资产信息 | E8: —
A9: （1）公务用车购置费 | D9: （一）车辆数合计（辆） | E9: 4
A10: （2）公务用车运行维护费 | B10: 29.34 | C10: 29.34 | D10: 1.副部（省）级及以上领导用车
A11: 3．公务接待费 | B11: 3.57 | C11: 3.57 | D11: 2.主要领导干部用车
A12: （1）国内接待费 | B12: — | C12: 3.57 | D12: 3.机要通信用车
A13: 其中：外事接待费 | B13: — | D13: 4.应急保障用车
A14: （2）国（境）外接待费 | B14: — | D14: 5.执法执勤用车
A15: （二）相关统计数 | B15: — | C15: — | D15: 6.特种专业技术用车 | E15: 4
A16: 1．因公出国（境）团组数（个） | B16: — | D16: 7.离退休干部用车
A17: 2．因公出国（境）人次数（人） | B17: — | D17: 8.其他用车
A18: 3．公务用车购置数（辆） | B18: — | D18: （二）单价100万元（含）以上设备（不含车辆）
A19: 4．公务用车保有量（辆） | B19: — | C19: 8 | D19: 六、政府采购支出信息 | E19: —
A20: 5．国内公务接待批次（个） | B20: — | C20: 40 | D20: （一）政府采购支出合计 | E20: 3,862.84
A21: 其中：外事接待批次（个） | B21: — | D21: 1．政府采购货物支出 | E21: 108.98
A22: 6．国内公务接待人次（人） | B22: — | C22: 377 | D22: 2．政府采购工程支出 | E22: 1,825.37
A23: 其中：外事接待人次（人） | B23: — | D23: 3．政府采购服务支出 | E23: 1,928.49
A24: 7．国（境）外公务接待批次（个） | B24: — | D24: （二）政府采购授予中小企业合同金额 | E24: 3,836.59
A25: 8．国（境）外公务接待人次（人） | B25: — | D25: 其中：授予小微企业合同金额 | E25: 135.23
A26: 二、会议费 | B26: — | C26: 0.22
A27: 三、培训费 | B27: — | C27: 28.55
A28: 备注：1.本表反映部门本年度财政拨款“三公”经费支出预决算情况。其中，预算数为“三公”经费全年预算数，反映按规定程序调整后的预算数；决算数为包括本年度财政拨款和以前年度结转资金安排的实际支出。
